bitfinex-derivatives/quotes_ETHF0:USTF0_20251107
["timestamp","ask_amount","ask_price","bid_price","bid_amount"]
[1762481872136,0.72172,3319.9,3319.8,3.21047715]
[1762481872330,0.72184,3319.1,3319.0,3.2078]
[1762481872642,0.48834,3319.1,3319.0,3.2078]
[1762481873439,0.4916966,3319.1,3319.0,3.21129509]
[1762481875241,0.4916966,3319.1,3319.0,3.45759509]
[1762481875436,0.0033566,3319.1,3319.0,3.45759509]
[1762481875641,0.0033566,3319.1,3319.0,3.54409509]
[1762481875840,0.0033566,3319.1,3319.0,3.45759509]
[1762481876537,0.48826,3319.7,3319.6,0.2463]
[1762481876732,0.48826,3319.7,3319.6,3.4541]
[1762481877039,0.72176,3319.7,3319.6,3.2078]
[1762481877447,0.7244386,3319.7,3319.6,3.2078]
[1762481877747,0.0026786,3319.7,3319.6,3.4541]
[1762481877941,0.0026786,3319.7,3319.6,7.2571]
[1762481878242,0.0026786,3319.7,3319.6,7.0108]
[1762481878437,0.2361786,3319.7,3319.6,3.803]
[1762481878838,0.0026786,3319.7,3319.6,7.2571]
[1762481879438,0.0026786,3319.7,3319.6,7.74537]
[1762481879844,3.2078,3320.3,3319.6,7.0108]
[1762481879845,0.48819,3320.2,3319.6,7.0108]
[1762481880040,0.48818,3320.2,3320.1,0.73449]
[1762481880243,0.48818,3320.2,3320.1,0.2463]
[1762481880838,0.49055134,3320.2,3320.1,0.2463]
[1762481881039,0.49055134,3320.2,3320.1,0.73449]
[1762481881243,0.49055134,3320.2,3320.1,4.0493]
[1762481881541,0.49055134,3320.2,3320.1,3.803]
[1762481881542,0.72405134,3320.2,3320.1,3.803]
[1762481882043,0.49055134,3320.2,3320.1,7.0108]
[1762481882341,0.72405134,3320.2,3320.1,3.803]
[1762481882541,0.72181,3319.3,3319.2,3.2078]
[1762481882841,0.48834,3319.1,3319.0,0.00349509]
[1762481883157,0.72184,3319.1,3319.0,0.00349509]
[1762481884944,0.1506,3319.5,3318.7,0.00451677]
[1762481884945,0.72449,3318.8,3318.7,0.00451677]
[1762481885246,0.48839,3318.8,3318.7,0.00451677]
[1762481886145,0.1442,3319.0,3318.8,0.48839]
[1762481886343,0.1506,3319.5,3318.9,0.48836]
[1762481886546,0.48837,3319.0,3318.9,0.2457]
[1762481886847,0.2361,3318.9,3318.8,3.2078]
[1762481887043,0.48837,3319.0,3318.8,3.2078]
[1762481887451,0.1506,3319.5,3318.8,3.69619]
[1762481887649,0.48836,3319.0,3318.8,3.69619]
[1762481887849,0.63256,3319.0,3318.8,3.2078]
[1762481888750,0.48836,3319.0,3318.9,0.2457]
[1762481888942,0.1506,3319.5,3318.8,3.69617]
[1762481889450,0.48836,3319.0,3318.8,3.2078]
[1762481889949,0.63256,3319.0,3318.8,5.31271]
[1762481890152,0.1442,3319.0,3318.8,5.31271]
[1762481890449,0.1506,3319.5,3318.9,1.86223]
[1762481890644,0.48832,3319.3,3319.2,3.94181]
[1762481890839,0.4883,3319.4,3319.2,3.2078]
[1762481891644,0.4883,3319.4,3319.3,0.2457]
[1762481892149,0.3803,3319.0,3318.9,1.61653]
[1762481892345,0.86866,3319.0,3318.8,3.69619]
[1762481892549,0.48837,3318.9,3318.8,3.69619]
[1762481893350,0.48837,3318.9,3318.8,3.2078]
[1762481893751,0.1442,3319.0,3318.7,0.00721818]
[1762481893752,0.48839,3318.8,3318.7,0.00721818]
[1762481893951,0.72449,3318.8,3318.7,0.00721818]
[1762481894348,0.63256,3319.0,3318.7,0.00721818]
[1762481894546,0.48837,3318.9,3318.8,3.2078]
[1762481895251,0.72447,3318.9,3318.8,3.2078]
[1762481895450,0.72449,3318.8,3318.7,0.00721818]
[1762481896746,0.48836,3319.0,3318.9,0.73407]
[1762481897560,3.352,3319.5,3318.9,0.2457]
[1762481897747,3.352,3319.5,3318.7,12.39001818]
[1762481897950,3.3584,3320.0,3319.4,0.48828]
[1762481898150,3.3584,3320.0,3319.2,3.2078]
[1762481898355,0.48837,3318.9,3318.8,2.63615844]
[1762481898552,0.48839,3318.8,3318.7,3.21501818]
[1762481898853,0.72449,3318.8,3318.7,3.21501818]
[1762481899048,0.72449,3318.8,3318.7,0.00721818]
[1762481899251,0.2361,3317.6,3317.4,5.35557844]
[1762481899449,0.1442,3317.5,3317.1,2.63640844]
[1762481899648,0.48864,3317.1,3317.0,3.2078]
[1762481900162,0.72834669,3317.1,3317.0,3.21031068]
[1762481900455,0.23970669,3317.1,3317.0,3.21031068]
[1762481900659,0.00360669,3317.1,3317.0,3.21031068]
[1762481901049,0.00360669,3317.1,3317.0,3.45601068]
[1762481901357,0.00360669,3317.1,3317.0,3.21031068]
[1762481901757,0.23970669,3317.1,3317.0,3.21031068]
[1762481902159,0.00360669,3317.1,3317.0,3.21031068]
[1762481902954,0.23970669,3317.1,3317.0,0.00251068]
[1762481904159,0.23970669,3317.1,3316.4,7.363]
[1762481904160,0.86898,3316.8,3316.2,3.2078]
[1762481904357,0.1442,3316.2,3315.8,3.2078]
[1762481904858,0.1442,3316.2,3316.0,0.48879]
[1762481905157,3.352,3316.8,3316.1,0.2457]
[1762481905362,0.1442,3316.8,3316.0,0.49244963]
[1762481905561,0.48875,3316.4,3316.2,0.48876]
[1762481905759,0.00360669,3317.1,3316.2,3.78176]
[1762481906060,0.00360669,3317.1,3316.3,0.48875]
[1762481906061,0.1442,3316.8,3316.3,0.48875]
[1762481906358,0.48875,3316.3,3316.2,3.69657]
[1762481906858,0.1442,3316.8,3316.3,0.48875]
[1762481907155,0.48873,3316.5,3316.3,0.48875]
[1762481908056,0.1442,3316.8,3316.2,3.2078]
[1762481908057,0.48869,3316.8,3316.5,0.48872]
[1762481908263,3.352,3316.8,3316.2,3.2078]
[1762481908559,0.63288,3316.8,3316.6,0.48871]
[1762481908763,0.1442,3316.8,3316.6,0.48871]
[1762481909557,0.00360669,3317.1,3316.6,0.48871]
[1762481909558,0.48865,3317.0,3316.8,0.48868]
[1762481910555,0.00360669,3317.1,3317.0,0.2457]
[1762481911450,0.00360669,3317.1,3317.0,3.54]
[1762481911662,0.00451677,3317.4,3317.3,0.2457]
[1762481911862,0.00451677,3317.4,3317.3,0.73431]
[1762481912165,0.00451677,3317.4,3317.3,0.2457]
[1762481912663,0.00783388,3317.4,3317.3,0.2457]
[1762481914466,0.00783388,3317.4,3317.3,0.73431]
[1762481915265,0.00783388,3317.4,3317.1,1.61653]
[1762481915266,0.48853,3317.9,3317.8,0.2334]
[1762481915467,0.48853,3317.9,3317.8,0.72193]
[1762481916266,0.49139057,3317.9,3317.8,0.72193]
[1762481916467,0.49139057,3317.9,3317.6,3.2078]
[1762481916468,0.48855,3317.7,3317.6,3.2078]
[1762481916667,0.48856,3317.6,3317.5,0.49310365]
[1762481917167,0.48856,3317.6,3317.5,0.00452365]
[1762481917769,0.48856,3317.6,3317.5,0.49310365]
[1762481917973,0.74356,3317.6,3317.5,0.00452365]
[1762481918262,3.95136,3317.6,3317.5,0.00452365]
[1762481920267,0.00286057,3317.9,3317.5,0.00452365]
[1762481920474,0.00286057,3317.9,3317.7,0.73725]
[1762481920972,0.00286057,3317.9,3317.8,0.73723]
[1762481921571,3.2078,3318.5,3318.4,0.48844]
[1762481921870,3.2078,3318.5,3318.4,0.73714]
[1762481922060,3.352,3319.0,3318.5,0.48843]
[1762481922263,3.352,3319.0,3318.7,0.4884]
[1762481922669,3.8430917,3319.0,3318.7,0.49078873]
[1762481922876,3.3547317,3319.0,3318.7,0.49078873]
[1762481923173,3.6988917,3319.0,3318.7,0.49078873]
[1762481923576,0.74339,3318.8,3318.7,0.00238873]
[1762481924675,0.48838,3318.9,3318.7,0.49078873]
[1762481924877,0.48838,3318.9,3318.8,0.2487]
[1762481925077,0.0027317,3319.0,3318.9,0.73707]
[1762481926578,0.0027317,3319.0,3318.9,2.3536]
[1762481926880,3.17e-05,3319.0,3318.9,2.3536]
[1762481927675,3.17e-05,3319.0,3318.9,0.73707]
[1762481927880,3.2078,3320.2,3319.9,0.73691]
[1762481927881,3.69598,3320.2,3319.9,0.73691]
[1762481928081,3.2078,3320.2,3320.1,0.2487]
[1762481928484,3.3457,3321.0,3320.0,3.2078]
[1762481928679,0.48806,3321.1,3320.8,0.73678]
[1762481928885,0.48806,3321.1,3320.8,0.2487]
[1762481928886,0.48807,3321.0,3320.8,0.2487]
[1762481929289,0.48813,3320.6,3320.4,3.2078]
[1762481929487,0.1379,3321.0,3320.2,0.48817]
[1762481929689,0.1379,3321.0,3320.1,9.172]
[1762481929690,0.48815,3320.4,3320.1,9.172]
[1762481929885,0.48815,3320.4,3320.1,9.66019]
[1762481930189,3.3457,3321.0,3320.1,9.66019]
[1762481930190,3.3457,3321.0,3320.1,9.172]
[1762481930692,0.48814,3320.5,3320.2,0.48817]
[1762481930992,0.48817,3320.3,3320.2,0.2487]
[1762481931382,3.3457,3321.0,3320.2,0.73688]
[1762481931584,0.48815,3320.4,3320.2,0.2487]
[1762481932192,0.48813,3320.6,3320.1,12.3798]
[1762481932383,0.48811,3320.7,3320.4,0.48814]
[1762481932788,0.48815,3320.4,3320.3,0.2487]
[1762481933289,3.3457,3321.0,3320.3,0.48815]
[1762481933290,0.1379,3320.5,3320.3,0.48815]
[1762481933490,0.62604,3320.5,3320.3,0.48815]
[1762481933689,0.1379,3320.5,3320.3,0.48815]
[1762481933992,0.48812,3320.6,3320.4,0.48814]
[1762481934189,0.48808,3320.9,3320.8,0.2487]
[1762481934388,0.00362807,3321.1,3320.5,3.2078]
[1762481934389,0.00362807,3321.1,3321.0,0.2487]
[1762481934596,0.1379,3323.0,3321.0,0.2487]
[1762481934597,3.2078,3321.8,3321.7,0.73666]
[1762481934890,0.48788,3322.3,3322.1,0.4879]
[1762481935092,0.48786,3322.4,3322.1,0.48789]
[1762481935288,0.1379,3322.5,3321.8,3.2078]
[1762481935484,0.48792,3322.0,3321.8,3.2078]
[1762481935690,0.00282621,3322.0,3321.8,3.69886737]
[1762481935888,0.49074621,3322.0,3321.8,3.69886737]
[1762481936792,0.00282621,3322.0,3321.8,3.69886737]
[1762481937093,0.00282621,3322.0,3321.9,0.2487]
[1762481937991,0.00282621,3322.0,3321.8,3.69886737]
[1762481937992,0.48783,3322.6,3322.4,0.48785]
[1762481938196,0.23915925,3323.8,3321.8,3.21092737]
[1762481938197,3.2078,3323.4,3323.0,0.48776]
[1762481938386,0.1379,3323.5,3322.8,0.48779]
[1762481938587,0.48777,3323.0,3322.8,3.69559]
[1762481938792,0.1379,3323.5,3322.8,3.2078]
[1762481938987,0.48774,3323.2,3323.0,0.48776]
[1762481939186,0.14172894,3323.5,3322.8,12.3738]
[1762481939395,0.48778,3323.0,3322.8,12.3738]
[1762481941003,0.48784,3322.5,3322.3,3.2078]
[1762481941199,0.48784,3322.5,3322.4,9.164]
[1762481941501,3.3457,3322.8,3321.9,3.2078]
[1762481941699,0.1379,3322.8,3322.2,0.48788]
[1762481941897,0.48791,3322.1,3321.9,3.2078]
[1762481942595,0.48785,3322.5,3322.0,0.2487]
[1762481942795,3.6956,3322.8,3322.6,0.48782]
[1762481942995,3.2078,3323.4,3322.4,3.2078]
[1762481943203,0.48775,3323.2,3322.9,0.48778]
[1762481943601,0.48776,3323.1,3322.9,0.48778]
[1762481943800,0.48778,3323.0,3322.8,0.2487]
[1762481943999,0.48784,3322.5,3322.4,3.2078]
[1762481944298,0.14172894,3323.5,3322.3,9.162]
[1762481944299,0.48786,3322.4,3322.3,9.162]
[1762481944497,0.4879,3322.1,3322.0,3.2078]
[1762481944700,0.48793,3321.9,3321.8,0.00312737]
[1762481944900,0.72773,3321.9,3321.8,0.00312737]
[1762481945994,0.2398,3321.9,3321.8,0.00312737]
[1762481946194,0.48793,3322.0,3321.8,0.49106737]
[1762481946394,0.1387,3322.2,3321.8,9.65206737]
[1762481946596,0.48786,3322.4,3322.1,0.4879]
[1762481946797,0.48788,3322.3,3322.1,0.4879]
[1762481947105,3.2078,3322.6,3322.0,3.2078]
[1762481947305,0.48785,3322.5,3322.3,0.48787]
[1762481947499,0.48785,3322.5,3322.0,3.2078]
[1762481947500,0.48788,3322.3,3322.1,0.48789]
[1762481947801,3.2078,3322.6,3322.0,3.2078]
[1762481947802,0.48789,3322.2,3322.0,3.2078]
[1762481948005,0.48789,3322.2,3322.0,3.69571]
[1762481948200,0.48789,3322.2,3322.0,3.2078]
[1762481949304,0.48786,3322.4,3322.2,0.48788]
[1762481949700,0.48789,3322.2,3322.0,3.6957]
[1762481950100,0.48784,3322.5,3322.3,0.48787]
[1762481950509,0.48785,3322.5,3322.0,3.2078]
[1762481950704,3.2078,3323.0,3322.6,0.48783]
[1762481950907,0.48781,3322.8,3322.7,0.48781]
[1762481951096,3.2078,3323.0,3322.9,0.74198]
[1762481951502,3.2078,3323.0,3322.5,9.16]
[1762481951503,3.2078,3323.4,3323.0,0.48776]
[1762481952102,3.2078,3323.8,3323.2,3.2078]
[1762481952407,0.48771,3323.4,3323.3,0.48772]
[1762481952905,0.48771,3323.4,3323.2,3.2078]
[1762481953607,3.2078,3324.2,3323.3,0.48772]
[1762481953906,3.2078,3324.2,3323.2,3.2078]
[1762481954107,0.00382894,3323.5,3323.4,0.74191]
[1762481954296,0.00382894,3323.5,3323.4,8.81421]
[1762481954500,0.00028396,3323.5,3323.4,8.81421]
[1762481954702,0.1387,3324.6,3323.4,8.316309]
[1762481955003,0.4876,3324.2,3323.9,0.48763]
[1762481955196,0.48757,3324.4,3324.1,0.2542]
[1762481955398,0.1387,3324.6,3324.1,3.462]
[1762481955601,0.14096368,3324.6,3324.1,3.462]
[1762481956095,0.00226368,3324.6,3324.4,0.48756]
[1762481956294,0.00226368,3324.6,3324.5,0.2542]
[1762481956499,0.00226368,3324.6,3324.5,3.462]
[1762481957410,0.00226368,3324.6,3324.5,3.2078]
[1762481958106,0.48755,3324.5,3324.4,0.00257917]
[1762481958512,0.62850368,3324.6,3324.4,0.00257917]
[1762481958703,0.00226368,3324.6,3324.5,3.462]
[1762481959504,0.14096368,3324.6,3324.5,3.2078]
[1762481959709,0.48755,3324.5,3324.4,0.00257917]
[1762481960010,0.72735,3324.5,3324.4,0.00257917]
[1762481960817,0.62850368,3324.6,3324.4,0.00257917]
[1762481961111,0.2398,3324.5,3324.4,0.00257917]
[1762481961616,0.62850368,3324.6,3324.4,0.00257917]
[1762481962303,0.2398,3324.5,3324.4,0.00257917]
[1762481963117,0.2398,3323.6,3323.5,3.2078]
[1762481963304,0.72749,3323.6,3323.5,3.2078]
[1762481963506,0.48775,3323.1,3322.9,6.396]
[1762481963710,0.48775,3323.1,3322.8,3.2078]
[1762481963916,0.48775,3323.1,3322.8,3.6956]
[1762481964112,0.48775,3323.1,3323.0,0.00836937]
[1762481964811,0.1387,3323.4,3323.0,0.00836937]
[1762481965217,3.2078,3323.6,3323.0,0.00836937]
[1762481965218,0.48768,3323.6,3323.3,0.48772]
[1762481965415,3.3465,3324.0,3323.2,0.48774]
[1762481965622,0.48771,3323.4,3323.2,3.69554]
[1762481965918,0.4877,3323.5,3323.3,0.48771]
[1762481966118,0.1387,3324.0,3323.6,0.2542]
[1762481966312,3.2078,3324.4,3323.6,3.2078]
[1762481966815,3.2078,3324.4,3323.4,9.161]
[1762481967015,3.2078,3324.4,3323.6,3.2078]
[1762481967317,3.2078,3324.4,3324.1,0.74181]
[1762481967712,3.2078,3324.4,3323.6,3.2078]
[1762481968220,3.2078,3324.4,3323.8,0.48765]
[1762481968423,3.2078,3324.4,3323.4,9.161]
[1762481968716,0.48768,3323.6,3323.4,9.161]
[1762481969120,0.72755,3323.1,3323.0,0.00836937]
[1762481970012,3.93535,3323.1,3323.0,0.00836937]
[1762481970427,0.72764,3322.5,3322.4,3.2078]
[1762481970723,0.48792,3322.0,3321.7,0.48795]
[1762481970920,3.2078,3322.7,3321.6,3.2078]
[1762481970921,3.2078,3322.7,3321.9,0.48792]
[1762481971218,3.2078,3322.7,3322.0,0.48791]
[1762481971418,3.21033177,3322.7,3322.0,3.70307948]
[1762481971820,3.21033177,3322.7,3322.0,0.00736948]
[1762481971821,0.48789,3322.2,3322.0,0.00736948]
[1762481972917,3.21033177,3322.7,3322.2,0.48787]
[1762481973320,3.21033177,3322.7,3322.0,0.00736948]
[1762481973518,0.48789,3322.2,3322.0,0.00736948]
[1762481974429,0.1387,3321.6,3321.2,3.2078]
[1762481974723,0.48801,3321.4,3321.2,3.2078]
[1762481975526,0.48801,3321.4,3321.2,3.21170848]
[1762481975824,0.2451,3321.3,3321.2,0.00390848]
[1762481976228,0.48818,3320.2,3320.1,3.2078]
[1762481976518,0.1491,3320.4,3319.7,0.48825]
[1762481976722,0.1491,3320.4,3319.6,3.2078]
[1762481977018,0.48823,3319.9,3319.6,3.2078]
[1762481977219,0.48824,3319.8,3319.6,3.21126747]
[1762481977424,0.00322658,3319.9,3319.6,0.00346747]
[1762481977614,0.00322658,3319.9,3319.6,3.21126747]
[1762481977816,0.00322658,3319.9,3319.7,0.48825]
[1762481978211,0.48824,3319.8,3319.6,3.69952747]
[1762481978420,0.00322658,3319.9,3318.1,3.2078]
[1762481978421,3.2078,3319.7,3318.1,3.2078]
[1762481978616,0.48849,3318.1,3318.0,0.1485]
[1762481979027,0.48858,3317.5,3316.6,3.2078]
[1762481979217,3.69638,3317.5,3316.3,3.368]
[1762481979422,3.69943831,3317.5,3317.4,0.10594147]
[1762481982326,3.21085831,3317.5,3317.4,0.10594147]
[1762481982823,0.0045165,3317.8,3317.7,0.24]
[1762481983125,3.2078,3318.3,3318.0,0.4885]
[1762481983324,3.2078,3318.3,3318.0,0.637]
[1762481983631,3.2078,3318.3,3318.0,0.1485]
[1762481983930,0.48848,3318.2,3318.0,0.1485]
[1762481984323,0.00346178,3318.3,3318.1,0.24]
[1762481984727,0.00346178,3318.3,3318.0,0.1485]
[1762481985228,0.49193178,3318.3,3318.0,0.1485]
[1762481985424,0.49193178,3318.3,3318.0,0.637]
[1762481985630,0.00346178,3318.3,3318.0,0.637]
[1762481985825,0.49193178,3318.3,3318.0,0.1485]
[1762481986223,0.00346178,3318.3,3318.2,3.93627]
[1762481986430,0.00346178,3318.3,3318.2,3.2078]
[1762481988226,0.00346178,3318.3,3318.2,3.4478]
[1762481988531,0.48847,3318.2,3318.0,0.1485]
[1762481989528,0.00346178,3318.3,3318.0,0.1485]
[1762481989827,0.48848,3318.2,3318.0,0.1485]
[1762481990031,0.00346178,3318.3,3318.0,0.637]
[1762481990234,0.00346178,3318.3,3318.1,0.48848]
[1762481990430,0.00346178,3318.3,3318.2,0.24]
[1762481990728,0.00346178,3318.3,3318.0,0.1485]
[1762481990729,0.48848,3318.2,3318.0,0.1485]
[1762481990939,3.2078,3318.1,3318.0,0.1485]
[1762481993233,9.2358,3318.1,3318.0,0.1485]
[1762481993429,3.2078,3318.1,3318.0,0.1485]
[1762481997642,3.69629,3318.1,3318.0,0.1485]
[1762482000048,3.2078,3318.1,3317.4,0.10594147]
[1762482000244,3.69638,3317.5,3317.4,0.10594147]
[1762482001538,3.2078,3317.5,3317.4,0.83453147]
[1762482001739,3.2078,3318.0,3317.4,0.34594147]
[1762482002044,3.2078,3318.0,3317.4,0.10594147]
[1762482002244,0.48853,3317.9,3317.7,0.48854]
[1762482002546,3.2078,3318.0,3317.8,0.48852]
[1762482002745,3.2078,3318.0,3317.9,0.48852]
[1762482003051,3.2078,3318.0,3317.4,3.31374147]
[1762482003052,0.48847,3318.2,3318.1,0.24]
[1762482003350,0.00346178,3318.3,3318.0,0.1485]
[1762482003847,0.00346178,3318.3,3318.1,0.48848]
[1762482004047,0.00346178,3318.3,3318.0,0.1485]
[1762482004048,0.48847,3318.2,3318.0,0.1485]
[1762482005338,0.48847,3318.2,3318.1,0.24]
[1762482005952,0.49192178,3318.3,3318.1,0.24]
[1762482006348,0.00346178,3318.3,3318.2,0.2523]
[1762482006553,0.49192178,3318.3,3318.2,0.2523]
[1762482007353,1.22587846,3318.3,3318.2,0.2523]
[1762482007553,0.49192178,3318.3,3318.2,0.2523]
[1762482008252,1.22593573,3318.3,3318.2,0.2523]
[1762482009055,1.22593573,3318.3,3318.2,0.74077]
[1762482009255,0.73747573,3318.3,3318.2,0.2523]
[1762482009452,1.22593573,3318.3,3318.2,0.2523]
[1762482010158,3.2123165,3318.4,3318.3,0.74076]
[1762482010561,0.48849,3318.1,3318.0,0.1485]
[1762482011056,3.2123165,3318.4,3318.3,0.74076]
[1762482011257,3.21552686,3318.4,3318.3,0.74076]
[1762482011950,3.69617,3318.9,3318.8,0.74068]
[1762482012344,3.69617,3318.9,3318.8,0.2523]
[1762482012549,0.4884,3318.7,3318.6,0.14]
[1762482012751,0.49087797,3318.7,3318.6,0.14]
[1762482013653,0.00247797,3318.7,3318.6,0.14]
[1762482013855,0.00247797,3318.7,3318.6,0.88071]
[1762482014459,3.2078,3319.3,3319.2,0.88063]
[1762482015556,3.69993581,3319.3,3319.2,0.88063]
[1762482017253,0.48836,3319.0,3318.9,0.0045165]
[1762482017655,0.48833,3319.2,3318.9,0.2568165]
[1762482017848,3.21162581,3319.3,3319.2,0.88063]
[1762482018050,0.00450872,3319.6,3319.5,0.74058]
[1762482018352,8.72e-06,3319.6,3319.5,0.74058]
[1762482018751,3.2078,3320.5,3320.0,0.2523]
[1762482018949,3.2078,3320.5,3319.8,0.14]
[1762482018950,3.2078,3320.5,3320.4,0.14]
[1762482019158,3.21161337,3320.5,3320.4,0.14327673]
[1762482019457,3.69974337,3320.5,3320.4,0.14327673]
[1762482020056,3.69974337,3320.5,3320.4,0.00327673]
[1762482020457,0.4883,3319.4,3319.2,0.14]
[1762482020659,3.2078,3319.3,3319.2,0.14]
[1762482021556,3.2078,3319.3,3319.2,0.14324739]
[1762482023761,3.2078,3319.3,3319.2,0.00324739]
[1762482024153,3.2078,3319.3,3319.2,0.14324739]
[1762482024760,3.2078,3319.3,3319.2,0.00324739]
[1762482025266,0.48836,3319.0,3318.9,0.0045165]
[1762482026461,0.48836,3319.0,3318.9,8.5e-06]
[1762482027160,1.21827166,3319.0,3318.9,8.5e-06]
[1762482027358,1.21827473,3319.0,3318.9,8.5e-06]
[1762482029063,0.48836,3319.0,3318.9,8.5e-06]
[1762482029652,6.51476,3319.0,3318.9,8.5e-06]
[1762482029857,0.48836,3319.0,3318.9,8.5e-06]
[1762482030054,0.48849,3318.1,3318.0,0.14]
[1762482030258,3.69629,3318.1,3318.0,0.14]
[1762482030565,3.2078,3318.7,3318.6,0.3923]
[1762482030961,3.21020098,3318.7,3318.6,0.39563722]
[1762482031866,3.21020098,3318.7,3318.6,0.14333722]
[1762482032764,3.21020098,3318.7,3318.6,0.39563722]
[1762482033364,0.00240098,3318.7,3318.6,8.39563722]
[1762482033665,0.48833,3319.2,3319.0,0.48835]
[1762482033871,0.49283649,3319.3,3319.2,0.3923]
[1762482034663,0.4953425,3319.3,3319.2,0.3923]
[1762482035569,0.48839,3318.8,3318.6,0.14333722]
[1762482035869,0.0070225,3319.3,3318.6,0.14333722]
[1762482035870,0.0070225,3319.3,3319.2,0.3855]
[1762482037165,3.11183379,3319.5,3319.4,0.233]
[1762482037362,3.11183379,3319.5,3319.2,0.1525]
[1762482037363,0.48823,3319.9,3319.8,0.3855]
[1762482037563,3.69596,3320.3,3320.2,0.233]
[1762482037767,0.48822,3320.0,3319.8,0.1525]
[1762482037962,3.2078,3319.9,3319.8,0.1525]
[1762482038163,3.21004544,3319.9,3319.8,0.1525]
[1762482039966,0.48827,3319.6,3319.5,0.0045165]
[1762482041361,0.48827,3319.6,3318.6,0.14333722]
[1762482041362,0.4884,3318.7,3318.6,0.14333722]
[1762482041767,0.4884,3318.7,3318.6,0.00333722]
[1762482042062,0.48856,3317.6,3317.0,5.35557844]
[1762482042268,3.69636,3317.6,3317.2,0.48862]
[1762482042467,3.69636,3317.6,3317.2,0.0045165]
[1762482042870,3.69636,3317.6,3317.4,0.15144994]
[1762482043568,0.0045165,3317.8,3317.5,0.2358]
[1762482043772,0.0045165,3317.8,3317.7,0.2358]
[1762482045165,0.0045165,3317.8,3317.7,0.72435]
[1762482045975,3.2123165,3317.8,3317.7,0.2358]
[1762482046173,3.2123165,3317.8,3317.4,0.15144994]
[1762482047378,0.48857,3317.6,3317.4,0.15144994]
[1762482048375,0.48857,3317.6,3317.4,0.00274994]
[1762482049467,0.48857,3317.6,3317.4,0.15144994]
[1762482049673,0.48857,3317.6,3317.5,0.2358]
[1762482049880,0.48857,3317.6,3317.4,0.15144994]
[1762482051275,0.48857,3317.6,3317.4,0.64002994]
[1762482051580,3.2123165,3317.8,3317.4,0.15144994]
[1762482051983,0.48857,3317.6,3317.4,0.15144994]
[1762482052970,0.48857,3317.6,3317.4,0.00274994]
[1762482054474,3.2123165,3317.8,3317.4,0.15144994]
[1762482054676,3.2123165,3317.8,3317.7,0.2358]
[1762482054881,3.2123165,3317.8,3317.4,0.15144994]
[1762482055378,0.48858,3317.5,3317.4,0.00274994]
[1762482055576,0.49104157,3317.5,3317.4,0.00274994]
[1762482056478,0.00246157,3317.5,3317.4,0.38724994]
[1762482056679,0.49104157,3317.5,3317.4,0.15144994]
[1762482057678,0.49104157,3317.5,3317.4,0.00274994]
[1762482057878,0.49104157,3317.5,3317.4,4.994e-05]
[1762482059874,0.00246157,3317.5,3317.4,0.23584994]
[1762482061081,0.00246157,3317.5,3317.4,8.23584994]
[1762482061286,0.0045165,3317.8,3317.7,0.2358]
[1762482062182,0.00762611,3317.8,3317.7,0.2358]
[1762482062488,3.69621,3318.6,3318.5,0.1487]
[1762482062886,3.69621,3318.6,3318.5,0.3845]
[1762482063191,3.69621,3318.6,3318.5,0.1487]
[1762482063482,3.69951814,3318.6,3318.5,0.1487]
[1762482063885,0.48846,3318.3,3318.2,0.0045165]
[1762482065278,0.48856,3317.6,3317.5,0.1487]
[1762482066093,3.2078,3318.3,3318.0,0.151]
[1762482066287,3.2078,3318.3,3318.2,0.255]
[1762482066992,0.48848,3318.2,3318.0,0.151]
[1762482067188,0.48852,3317.9,3317.8,0.0045165]
[1762482067387,3.69632,3317.9,3317.8,0.0045165]
[1762482069586,0.48858,3317.5,3317.0,0.1487]
[1762482069793,3.69638,3317.5,3317.0,0.1487]
[1762482070591,3.69638,3317.5,3317.1,0.0045165]
[1762482071496,3.69638,3317.5,3317.4,0.15104994]
[1762482071497,3.2078,3317.5,3317.4,0.15104994]
[1762482072189,0.48855,3317.7,3317.4,0.15104994]
[1762482072394,0.48855,3317.7,3317.6,0.255]
[1762482072597,3.69633,3317.9,3317.6,0.255]
[1762482072795,0.48853,3317.8,3317.6,0.74355]
[1762482072997,0.48858,3317.5,3317.4,0.15104994]
[1762482073595,0.48858,3317.5,3317.4,4.994e-05]
[1762482074100,0.48858,3317.5,3317.4,0.15104994]
[1762482074294,0.48858,3317.5,3317.4,0.40604994]
[1762482075395,0.48858,3317.5,3317.4,0.15104994]
[1762482076886,0.4885,3318.0,3317.9,0.255]
[1762482077087,3.2078,3318.0,3317.4,0.15104994]
[1762482077296,0.48853,3317.9,3317.7,0.48854]
[1762482078096,0.48853,3317.8,3317.4,0.15104994]
[1762482078799,3.6963,3318.0,3317.9,0.48852]
[1762482078994,3.6963,3318.0,3317.4,0.15104994]
[1762482078995,3.69625,3318.4,3318.1,0.74347]
[1762482079201,0.48847,3318.3,3318.1,0.74347]
[1762482079391,0.48847,3318.3,3318.2,0.255]
[1762482079799,0.48847,3318.3,3318.2,0.74347]
[1762482080097,0.49171814,3318.6,3318.5,0.406]
[1762482082096,0.49171814,3318.6,3318.5,0.151]
[1762482082301,0.48849,3318.1,3318.0,0.151]
[1762482083094,0.48847,3318.2,3318.1,0.48848]
[1762482083401,0.00330814,3318.6,3318.2,0.48847]
[1762482083707,0.49171814,3318.6,3318.5,0.151]
[1762482084194,0.48849,3318.1,3318.0,0.151]
[1762482085504,0.00330814,3318.6,3318.0,0.151]
[1762482085505,0.00330814,3318.6,3318.5,0.406]
[1762482085699,0.00330814,3318.6,3318.5,0.89443]
[1762482085901,0.00330814,3318.6,3318.5,0.74343]
[1762482086604,0.00330814,3318.6,3318.5,0.89443]
[1762482087202,0.49171814,3318.6,3318.5,0.406]
[1762482087603,0.49171814,3318.6,3318.5,0.255]
[1762482087807,0.49171814,3318.6,3318.5,0.74343]
[1762482088608,0.00330814,3318.6,3318.5,0.89443]
[1762482089007,0.00330814,3318.6,3318.5,4.10223]